[Event "2nd Irena Warakomska Memorial-B"]
[Site "Suwalki"]
[Date "2018.08.07"]
[Round "8"]
[White "Koziej, Maciej"]
[Black "Kowalec, Maciej"]
[Result "1-0"]
[ECO "A04"]
[WhiteElo "2027"]
[BlackElo "2065"]
[Annotator "NA"]
[PlyCount "107"]
[EventDate "2018.08.01"]
[EventType "swiss"]
[EventCountry "POL"]
[SourceTitle "playchess.com"]
[Source "ChessBase"]
[SourceQuality "1"]
[TimeControl "40/5400+30:1800+30"]

1. Nf3 {[%emt 0:00:00]} f5 {[%emt 0:00:00]} 2. c4 {[%emt 0:03:46]} Nf6 {[%emt 0:00:15]} 3. g3 {[%emt 0:00:17]} d6 {[%emt 0:00:20]} 4. d4 {[%emt 0:00:59]} g6 {[%emt 0:00:26]} 5. Bg2 {[%emt 0:02:16]} Bg7 {[%emt 0:00:23]} 6. O-O {[%emt 0:00:06]} O-O {[%emt 0:00:09]} 7. Nc3 {[%emt 0:04:16]} Qe8 {[%emt 0:00:53]} 8. Qc2 {[%emt 0:01:20]} c6 {[%emt 0:10:52]} 9. b3 {[%emt 0:01:49]} Na6 {[%emt 0:01:50]} 10. Ba3 {[%emt 0:03:04]} Bd7 {[%emt 0:02:57]} 11. Qd3 {[%emt 0:05:51]} h6 {[%emt 0:04:20]} 12. Nh4 {[%emt 0:00:44]} Rb8 {[%emt 0:03:07]} 13. Rac1 {[%emt 0:13:20]} Nc7 {[%emt 0:11:39]} 14. d5 {[%emt 0:01:34]} Ng4 {[%emt 0:15:23]} 15. f4 {[%emt 0:04:46]} c5 {[%emt 0:03:27]} 16. Nd1 {[%emt 0:01:24]} b5 {[%emt 0:01:55]} 17. h3 {[%emt 0:00:18]} bxc4 {[%emt 0:01:10]} 18. bxc4 {[%emt 0:00:20]} Nf6 {[%emt 0:00:27]} 19. Bb2 {[%emt 0:00:37]} Qf7 {[%emt 0:06:14]} 20. Bc3 {[%emt 0:07:33]} Na6 {[%emt 0:03:30]} 21. Nf2 {[%emt 0:00:45]} Nb4 {[%emt 0:01:33]} 22. Qd2 {[%emt 0:00:11]} Nh5 {[%emt 0:01:00]} 23. Kh2 {[%emt 0:06:40]} Bf6 {[%emt 0:04:31]} 24. Nf3 {[%emt 0:02:57]} Qg7 {[%emt 0:04:51]} 25. Bxf6 {[%emt 0:02:46]} Qxf6 {[%emt 0:01:44]} 26. Rb1 {[%emt 0:01:24]} Rb6 {[%emt 0:05:50]} 27. a3 {[%emt 0:00:17]} Na6 {[%emt 0:00:13]} 28. Rxb6 {[%emt 0:00:04]} axb6 {[%emt 0:00:04]} 29. Rb1 {[%emt 0:00:06]} Rb8 {[%emt 0:00:39]} 30. e4 {[%emt 0:04:55]} fxe4 {[%emt 0:04:09]} 31. Nxe4 {[%emt 0:00:05]} Qg7 {[%emt 0:00:48]} 32. g4 {[%emt 0:01:31]} Nf6 {[%emt 0:00:23]} 33. Ng3 {[%emt 0:02:21]} Nc7 {[%emt 0:01:56]} 34. Bf1 {[%emt 0:00:43]} Nh7 {[%emt 0:01:15]} 35. Bd3 {[%emt 0:01:47]} Nf8 {[%emt 0:02:06]} 36. f5 {[%emt 0:00:25]} Be8 {[%emt 0:01:53]} 37. fxg6 {[%emt 0:03:30]} Bxg6 {[%emt 0:00:05]} 38. Bxg6 {[%emt 0:03:15]} Qxg6 {[%emt 0:00:21]} 39. Nf5 {[%emt 0:00:30]} Kh7 {[%emt 0:00:41]} 40. Re1 {[%emt 0:00:00]} Re8 {[%emt 0:00:00]} 41. Nxe7 {[%emt 0:02:38]} Qf6 {[%emt 0:02:34]} 42. Nf5 {[%emt 0:00:32]} Rxe1 {[%emt 0:01:11]} 43. Qxe1 {[%emt 0:00:15]} Nd7 {[%emt 0:04:05]} 44. Kg3 {[%emt 0:06:11]} h5 {[%emt 0:03:16]} 45. Qe4 {[%emt 0:01:34]} hxg4 {[%emt 0:02:42]} 46. hxg4 {[%emt 0:01:02]} Kh8 {[%emt 0:00:21]} 47. g5 {[%emt 0:00:33]} Qg6 {[%emt 0:00:42]} 48. Qh4+ {[%emt 0:00:27]} Qh7 {[%emt 0:00:27]} 49. Nxd6 {[%emt 0:00:25]} Kg7 {[%emt 0:00:44]} 50. Qxh7+ {[%emt 0:00:07]} Kxh7 {[%emt 0:00:01]} 51. Kf4 {[%emt 0:00:15]} Kg6 {[%emt 0:01:01]} 52. a4 {[%emt 0:02:00]} Na6 {[%emt 0:00:46]} 53. Nc8 {[%emt 0:00:34]} Nb4 {[%emt 0:00:36]} 54. Ne5+ {[%emt 0:00:34]} 1-0

[Event "2nd Irena Warakomska Memorial-B"]
[Site "Suwalki"]
[Date "2018.08.07"]
[Round "8"]
[White "Rak, Tomasz"]
[Black "Nikitin, Aleksander I"]
[Result "*"]
[ECO "A05"]
[WhiteElo "2007"]
[BlackElo "2036"]
[Annotator "NA"]
[PlyCount "93"]
[EventDate "2018.08.01"]
[EventType "swiss"]
[EventCountry "POL"]
[SourceTitle "playchess.com"]
[Source "ChessBase"]
[SourceQuality "1"]
[TimeControl "40/5400+30:1800+30"]

1. Nf3 {[%emt 0:00:00]} Nf6 {[%emt 0:00:04]} 2. d4 {[%emt 0:00:00]} d6 {[%emt 0:01:11]} 3. c4 {[%emt 0:00:00]} Nbd7 {[%emt 0:00:23]} 4. Nc3 {[%emt 0:00:11]} c6 {[%emt 0:00:12]} 5. e4 {[%emt 0:01:32]} e5 {[%emt 0:00:15]} 6. d5 {[%emt 0:01:31]} Nc5 {[%emt 0:03:43]} 7. Nd2 {[%emt 0:03:54]} a5 {[%emt 0:02:55]} 8. Be2 {[%emt 0:00:56]} Be7 {[%emt 0:02:01]} 9. b3 {[%emt 0:01:23]} cxd5 {[%emt 0:00:36]} 10. cxd5 {[%emt 0:01:24]} O-O {[%emt 0:02:37]} 11. O-O {[%emt 0:04:14]} Ne8 {[%emt 0:05:47]} 12. Nc4 {[%emt 0:07:10]} f5 {[%emt 0:16:43]} 13. exf5 {[%emt 0:01:22]} Bxf5 {[%emt 0:01:24]} 14. Be3 {[%emt 0:02:01]} Rc8 {[%emt 0:24:59]} 15. a3 {[%emt 0:14:54]} Bf6 16. Nb5 e4 {[%emt 0:13:48]} 17. Ra2 {[%emt 0:02:29]} Kh8 {[%emt 0:05:13]} 18. Nxa5 {[%emt 0:06:15]} Qxa5 {[%emt 0:01:27]} 19. b4 {[%emt 0:00:04]} Qd8 {[%emt 0:02:35]} 20. bxc5 {[%emt 0:00:14]} dxc5 {[%emt 0:02:10]} 21. Rc2 {[%emt 0:06:19]} b6 {[%emt 0:03:37]} 22. a4 {[%emt 0:06:10]} Be5 {[%emt 0:01:30]} 23. Na7 {[%emt 0:01:26]} Bxh2+ {[%emt 0:01:32]} 24. Kxh2 {[%emt 0:00:20]} Qc7+ {[%emt 0:00:07]} 25. d6 {[%emt 0:03:50]} Qxa7 {[%emt 0:00:29]} 26. Bb5 {[%emt 0:00:24]} Nf6 {[%emt 0:01:18]} 27. Bf4 {[%emt 0:06:50]} e3 {[%emt 0:01:16]} 28. fxe3 {[%emt 0:01:45]} Bxc2 {[%emt 0:00:20]} 29. Qxc2 {[%emt 0:00:04]} Rcd8 {[%emt 0:01:22]} 30. Rd1 {[%emt 0:01:37]} Qf7 {[%emt 0:01:08]} 31. Qf5 {[%emt 0:01:36]} Qb3 {[%emt 0:00:51]} 32. Rd3 {[%emt 0:00:32]} Qc2 {[%emt 0:00:24]} 33. Qe6 {[%emt 0:02:21]} h5 {[%emt 0:02:15]} 34. Be5 {[%emt 0:04:14]} Qf2 35. Bxf6 {[%emt 0:03:00]} Rxf6 {[%emt 0:01:21]} 36. Qe5 {[%emt 0:03:26]} Qh4+ {[%emt 0:00:23]} 37. Kg1 {[%emt 0:00:01]} Qe1+ {[%emt 0:00:23]} 38. Kh2 {[%emt 0:00:01]} Qh4+ {[%emt 0:00:53]} 39. Kg1 {[%emt 0:00:02]} Rdf8 {[%emt 0:01:08]} 40. Rd1 {[%emt 0:00:00]} Rf5 {[%emt 0:00:00]} 41. Qe7 {[%emt 0:05:58]} R5f6 {[%emt 0:03:35]} 42. Qe5 Rf5 {[%emt 0:15:29]} 43. Qe7 {[%emt 0:04:53]} R5f6 {[%emt 0:04:13]} 44. Qe5 Qg4 45. Qd5 Qh4 46. Qe5 Rf2 47. Bc6 *

[Event "2nd Irena Warakomska Memorial-B"]
[Site "Suwalki"]
[Date "2018.08.07"]
[Round "8"]
[White "Bury, Gleb M"]
[Black "Shamatava, Nikolozi"]
[Result "1/2-1/2"]
[ECO "B42"]
[WhiteElo "1928"]
[BlackElo "1676"]
[Annotator "NA"]
[PlyCount "81"]
[EventDate "2018.08.01"]
[EventType "swiss"]
[EventCountry "POL"]
[SourceTitle "playchess.com"]
[Source "ChessBase"]
[SourceQuality "1"]
[TimeControl "40/5400+30:1800+30"]

1. e4 {[%emt 0:00:00]} c5 {[%emt 0:00:00]} 2. Nf3 {[%emt 0:00:20]} e6 {[%emt 0:00:35]} 3. d4 {[%emt 0:00:08]} cxd4 {[%emt 0:00:02]} 4. Nxd4 {[%emt 0:00:09]} a6 {[%emt 0:00:01]} 5. Bd3 {[%emt 0:01:26]} Bc5 {[%emt 0:01:24]} 6. Nb3 {[%emt 0:00:46]} Ba7 {[%emt 0:00:05]} 7. Qg4 {[%emt 0:02:23]} Nf6 {[%emt 0:00:39]} 8. Qg3 {[%emt 0:00:31]} d6 {[%emt 0:09:51]} 9. O-O {[%emt 0:03:47]} O-O {[%emt 0:18:57]} 10. Bg5 {[%emt 0:08:56]} Nbd7 {[%emt 0:25:28]} 11. Kh1 {[%emt 0:07:49]} Bb8 {[%emt 0:16:17]} 12. f4 {[%emt 0:03:50]} Re8 {[%emt 0:07:32]} 13. Nc3 {[%emt 0:03:33]} b5 {[%emt 0:01:06]} 14. Rad1 {[%emt 0:09:51]} Qc7 {[%emt 0:02:55]} 15. a3 {[%emt 0:04:40]} Bb7 {[%emt 0:02:26]} 16. Rf3 {[%emt 0:06:34]} d5 {[%emt 0:07:52]} 17. exd5 {[%emt 0:02:13]} exd5 {[%emt 0:01:17]} 18. Nd4 {[%emt 0:07:25]} Ne4 {[%emt 0:01:02]} 19. Qh4 {[%emt 0:07:44]} f6 {[%emt 0:00:39]} 20. Rh3 {[%emt 0:01:54]} Nf8 {[%emt 0:00:17]} 21. Bxe4 {[%emt 0:02:52]} dxe4 {[%emt 0:00:21]} 22. Bxf6 {[%emt 0:00:45]} Qxf4 {[%emt 0:00:54]} 23. Bg5 {[%emt 0:11:40]} Qxh4 {[%emt 0:00:08]} 24. Bxh4 Ng6 25. Bf2 {[%emt 0:03:07]} Nf4 {[%emt 0:00:40]} 26. Re3 {[%emt 0:00:48]} Ba7 {[%emt 0:01:05]} 27. Nce2 {[%emt 0:01:29]} Nxe2 {[%emt 0:00:31]} 28. Rxe2 {[%emt 0:00:03]} Rad8 {[%emt 0:00:19]} 29. c3 {[%emt 0:00:45]} Rd5 {[%emt 0:00:38]} 30. Be3 {[%emt 0:00:44]} Rf8 {[%emt 0:00:40]} 31. Rde1 {[%emt 0:00:47]} Bxd4 {[%emt 0:00:22]} 32. Bxd4 {[%emt 0:01:01]} Rdf5 {[%emt 0:00:06]} 33. Kg1 {[%emt 0:01:27]} h5 {[%emt 0:00:40]} 34. Rf2 {[%emt 0:01:03]} Rxf2 {[%emt 0:00:52]} 35. Bxf2 {[%emt 0:00:02]} Re8 {[%emt 0:00:14]} 36. Bd4 {[%emt 0:00:29]} g5 {[%emt 0:00:16]} 37. Be3 {[%emt 0:01:06]} g4 {[%emt 0:00:57]} 38. Rd1 {[%emt 0:00:23]} Kf7 {[%emt 0:01:07]} 39. Kf2 {[%emt 0:02:41]} Ke6 {[%emt 0:00:29]} 40. Bf4 {[%emt 0:00:00]} Bd5 {[%emt 0:00:00]} 41. Ke3 {[%emt 0:04:25]} 1/2-1/2

[Event "2nd Irena Warakomska Memorial-B"]
[Site "Suwalki"]
[Date "2018.08.08"]
[Round "9"]
[White "Kindler, Przemyslaw"]
[Black "Rak, Tomasz"]
[Result "1-0"]
[ECO "B38"]
[WhiteElo "2086"]
[BlackElo "2007"]
[Annotator "NA RC"]
[PlyCount "95"]
[EventDate "2018.08.01"]
[EventType "swiss"]
[EventCountry "POL"]
[SourceTitle "playchess.com"]
[Source "ChessBase"]
[SourceQuality "1"]
[TimeControl "40/5400+30:1800+30"]

1. e4 {[%emt 0:00:00]} c5 {[%emt 0:00:00]} 2. Nf3 {[%emt 0:00:00]} Nc6 {[%emt 0:00:00]} 3. d4 {[%emt 0:00:00]} cxd4 {[%emt 0:00:00]} 4. Nxd4 {[%emt 0:00:00]} g6 {[%emt 0:00:14]} 5. c4 {[%emt 0:00:00]} Bg7 {[%emt 0:00:06]} 6. Be3 {[%emt 0:00:00]} Nf6 {[%emt 0:00:22]} 7. Nc3 {[%emt 0:00:04]} O-O {[%emt 0:00:13]} 8. Be2 {[%emt 0:00:03]} Ne8 {[%emt 0:00:13]} 9. O-O {[%emt 0:00:21]} Nc7 {[%emt 0:00:06]} 10. Qd2 {[%emt 0:01:01]} e5 {[%emt 0:00:25]} 11. Ndb5 {[%emt 0:00:30]} Ne6 {[%emt 0:00:16]} 12. Nd5 {[%emt 0:00:48]} f5 {[%emt 0:00:12]} 13. exf5 {[%emt 0:02:29]} gxf5 {[%emt 0:00:06]} 14. Bh6 {[%emt 0:06:49]} d6 {[%emt 0:01:45]} 15. Bxg7 {[%emt 0:01:26]} Kxg7 {[%emt 0:00:31]} 16. f4 {[%emt 0:00:40]} a6 {[%emt 0:08:34]} 17. Nbc3 {[%emt 0:00:04]} Ned4 {[%emt 0:01:51]} 18. Rae1 {[%emt 0:00:51]} Be6 {[%emt 0:02:13]} 19. Bd1 {[%emt 0:00:13]} b5 {[%emt 0:07:21]} 20. fxe5 {[%emt 0:01:45]} dxe5 {[%emt 0:01:26]} 21. Rxe5 {[%emt 0:05:44]} bxc4 {[%emt 0:06:54]} 22. Rfe1 {[%emt 0:00:14]} Qd6 {[%emt 0:06:21]} 23. Qe3 {[%emt 0:19:58]} Bf7 {[%emt 0:13:18]} 24. Qg3+ {[%emt 0:05:26]} Kh8 {[%emt 0:02:26]} 25. R5e3 {[%emt 0:00:20]} Qc5 {[%emt 0:02:50]} 26. Nf6 {[%emt 0:09:30]} Rad8 {[%emt 0:07:00]} 27. Na4 {[%emt 0:02:59]} Qa7 {[%emt 0:01:43]} 28. Nxh7 {[%emt 0:00:36]} Rfe8 {[%emt 0:19:56]} 29. Ng5 {[%emt 0:04:32]} Bg6 {[%emt 0:02:35]} 30. Kh1 Kg7 {[%emt 0:07:14]} 31. Rxe8 {[%emt 0:03:04]} Rxe8 {[%emt 0:00:01]} 32. Rxe8 Bxe8 {[%emt 0:00:01]} 33. Ne4+ {[%emt 0:00:12]} Kf8 {[%emt 0:02:17]} 34. Qd6+ {[%emt 0:00:27]} Qe7 {[%emt 0:00:29]} 35. Qh6+ {[%emt 0:00:20]} Qg7 36. Qxg7+ {[%emt 0:06:52]} Kxg7 {[%emt 0:00:19]} 37. Nd6 {[%emt 0:00:07]} Bg6 {[%emt 0:00:45]} 38. Nxc4 {[%emt 0:00:16]} f4 {[%emt 0:00:36]} 39. Nc5 {[%emt 0:00:30]} a5 {[%emt 0:00:33]} 40. Ba4 Kf6 {[%emt 0:00:00]} 41. Kg1 {[%emt 0:00:53]} Kg5 {[%emt 0:03:07]} 42. Kf2 {[%emt 0:00:12]} Bb1 {[%emt 0:01:57]} 43. a3 {[%emt 0:04:51]} Ba2 {[%emt 0:00:18]} 44. Bxc6 {[%emt 0:00:18]} Bxc4 {[%emt 0:01:05]} 45. Be4 {[%emt 0:00:06]} Kf6 {[%emt 0:00:49]} 46. Nd3 {[%emt 0:00:47]} Kg5 {[%emt 0:02:42]} 47. Ne5 {[%emt 0:01:30]} Bb3 {[%emt 0:01:24]} 48. Nf3+ {[%emt 0:00:15]} 1-0

[Event "2nd Irena Warakomska Memorial-B"]
[Site "Suwalki"]
[Date "2018.08.08"]
[Round "9"]
[White "Kowalec, Maciej"]
[Black "Szewczyk, Mariusz"]
[Result "1-0"]
[ECO "A16"]
[WhiteElo "2065"]
[BlackElo "2094"]
[Annotator "NA RC"]
[PlyCount "109"]
[EventDate "2018.08.01"]
[EventType "swiss"]
[EventCountry "POL"]
[SourceTitle "playchess.com"]
[Source "ChessBase"]
[SourceQuality "1"]
[TimeControl "40/5400+30:1800+30"]

1. c4 {[%emt 0:01:15]} Nf6 {[%emt 0:00:00]} 2. Nc3 {[%emt 0:00:19]} g6 {[%emt 0:00:00]} 3. g3 {[%emt 0:00:19]} Bg7 {[%emt 0:00:00]} 4. Bg2 {[%emt 0:00:05]} d6 {[%emt 0:00:00]} 5. e4 {[%emt 0:00:28]} O-O {[%emt 0:00:32]} 6. d3 {[%emt 0:01:11]} e5 {[%emt 0:00:12]} 7. Nge2 {[%emt 0:00:35]} Nc6 {[%emt 0:00:08]} 8. O-O {[%emt 0:00:18]} Nd4 {[%emt 0:04:43]} 9. Nxd4 {[%emt 0:03:55]} exd4 {[%emt 0:00:11]} 10. Ne2 {[%emt 0:00:23]} Nd7 {[%emt 0:01:50]} 11. f4 {[%emt 0:02:19]} f5 {[%emt 0:02:11]} 12. exf5 {[%emt 0:05:40]} gxf5 {[%emt 0:02:07]} 13. b4 {[%emt 0:08:16]} c5 {[%emt 0:03:19]} 14. bxc5 {[%emt 0:02:51]} dxc5 {[%emt 0:00:28]} 15. Rb1 {[%emt 0:01:00]} Qc7 {[%emt 0:02:00]} 16. Bd2 {[%emt 0:04:27]} Nf6 {[%emt 0:01:56]} 17. h3 {[%emt 0:04:37]} Rb8 {[%emt 0:03:48]} 18. Kh2 {[%emt 0:01:20]} Bd7 {[%emt 0:13:08]} 19. a4 {[%emt 0:04:49]} Bc6 {[%emt 0:04:13]} 20. Bxc6 {[%emt 0:05:59]} Qxc6 {[%emt 0:01:32]} 21. Ng1 {[%emt 0:00:50]} Rfe8 {[%emt 0:02:19]} 22. Nf3 {[%emt 0:03:10]} Re7 {[%emt 0:21:02]} 23. Rf2 {[%emt 0:09:31]} Nd7 {[%emt 0:14:32]} 24. Nh4 {[%emt 0:03:15]} Rf8 {[%emt 0:05:10]} 25. a5 {[%emt 0:06:42]} b6 {[%emt 0:03:03]} 26. axb6 {[%emt 0:00:42]} axb6 {[%emt 0:00:21]} 27. Re2 {[%emt 0:02:17]} Qf6 {[%emt 0:00:57]} 28. Rxe7 {[%emt 0:03:32]} Qxe7 {[%emt 0:00:05]} 29. Qf3 {[%emt 0:00:34]} Qf7 {[%emt 0:02:58]} 30. Re1 {[%emt 0:03:32]} Rb8 {[%emt 0:02:26]} 31. Qc6 {[%emt 0:01:37]} Nf8 {[%emt 0:00:09]} 32. Nf3 {[%emt 0:06:03]} Qb7 {[%emt 0:03:21]} 33. Qxb7 {[%emt 0:01:30]} Rxb7 {[%emt 0:00:02]} 34. Nh4 {[%emt 0:01:20]} Rf7 {[%emt 0:00:50]} 35. Kg2 {[%emt 0:01:45]} Ng6 {[%emt 0:01:28]} 36. Re8+ {[%emt 0:01:00]} Bf8 {[%emt 0:00:18]} 37. Nxg6 {[%emt 0:02:00]} hxg6 38. Re6 {[%emt 0:07:30]} Re7 {[%emt 0:01:45]} 39. Rxe7 {[%emt 0:00:23]} Bxe7 {[%emt 0:00:05]} 40. Be1 {[%emt 0:00:00]} Kf7 {[%emt 0:00:00]} 41. g4 {[%emt 0:02:45]} Ke6 {[%emt 0:03:15]} 42. Kf3 {[%emt 0:00:58]} Kd6 {[%emt 0:13:42]} 43. h4 {[%emt 0:07:38]} Kc6 44. gxf5 {[%emt 0:02:48]} gxf5 {[%emt 0:00:35]} 45. h5 {[%emt 0:00:13]} b5 {[%emt 0:00:49]} 46. cxb5+ {[%emt 0:00:09]} Kxb5 {[%emt 0:00:12]} 47. h6 {[%emt 0:00:19]} Bf6 {[%emt 0:03:42]} 48. h7 {[%emt 0:00:20]} Bh8 {[%emt 0:13:24]} 49. Ke2 {[%emt 0:01:26]} Kc6 {[%emt 0:02:33]} 50. Ba5 {[%emt 0:00:51]} Kd7 {[%emt 0:01:42]} 51. Kd2 {[%emt 0:00:47]} Ke7 {[%emt 0:01:16]} 52. Bc7 {[%emt 0:00:51]} Kf7 {[%emt 0:00:09]} 53. Be5 {[%emt 0:00:11]} Bxe5 {[%emt 0:00:15]} 54. fxe5 {[%emt 0:00:01]} Kg7 {[%emt 0:00:09]} 55. e6 {[%emt 0:00:07]} 1-0

[Event "2nd Irena Warakomska Memorial-B"]
[Site "Suwalki"]
[Date "2018.08.08"]
[Round "9"]
[White "Barchuk, Irina"]
[Black "Bury, Gleb Maximovich"]
[Result "0-1"]
[ECO "B12"]
[WhiteElo "2061"]
[BlackElo "1928"]
[Annotator "NA RC"]
[PlyCount "56"]
[EventDate "2018.08.01"]
[EventType "swiss"]
[EventCountry "POL"]
[SourceTitle "playchess.com"]
[Source "ChessBase"]
[SourceQuality "1"]
[TimeControl "40/5400+30:1800+30"]

1. e4 c6 {[%emt 0:00:00]} 2. d4 {[%emt 0:00:00]} d5 {[%emt 0:00:00]} 3. e5 {[%emt 0:00:00]} Bf5 {[%emt 0:00:00]} 4. Nf3 {[%emt 0:01:33]} e6 {[%emt 0:00:00]} 5. Be2 {[%emt 0:01:39]} Ne7 {[%emt 0:00:00]} 6. Nc3 {[%emt 0:00:38]} Nd7 7. Be3 {[%emt 0:00:49]} h6 {[%emt 0:00:46]} 8. O-O {[%emt 0:12:13]} g5 {[%emt 0:04:52]} 9. Nd2 {[%emt 0:00:29]} Qc7 {[%emt 0:09:43]} 10. f4 {[%emt 0:00:17]} Rg8 {[%emt 0:00:11]} 11. fxg5 {[%emt 0:02:07]} hxg5 {[%emt 0:03:51]} 12. g4 {[%emt 0:00:26]} Bg6 {[%emt 0:03:58]} 13. Nf3 {[%emt 0:03:01]} O-O-O {[%emt 0:02:59]} 14. Nxg5 {[%emt 0:00:21]} Bh6 15. h4 {[%emt 0:00:05]} f6 {[%emt 0:15:12]} 16. Nxe6 {[%emt 0:01:13]} Bxe3+ {[%emt 0:01:16]} 17. Kh1 {[%emt 0:22:08]} Qb8 18. Rf3 {[%emt 0:02:20]} Rh8 {[%emt 0:11:46]} 19. Rxe3 {[%emt 0:06:10]} Rxh4+ 20. Kg1 {[%emt 0:00:06]} Rdh8 {[%emt 0:03:27]} 21. Bf3 {[%emt 0:03:14]} fxe5 {[%emt 0:08:27]} 22. Bg2 {[%emt 0:00:46]} e4 23. Qe2 {[%emt 0:00:25]} Qd6 {[%emt 0:02:12]} 24. Ng5 {[%emt 0:00:04]} Qh2+ 25. Kf2 {[%emt 0:00:04]} Qf4+ {[%emt 0:02:41]} 26. Nf3 {[%emt 0:00:35]} exf3 27. Rxf3 {[%emt 0:00:04]} Qxd4+ {[%emt 0:02:36]} 28. Kg3 Rxg4# {Nb1 Qe5+} 0-1

[Event "2nd Irena Warakomska Memorial-B"]
[Site "Suwalki"]
[Date "2018.08.08"]
[Round "9"]
[White "Nikitin, Aleksander I"]
[Black "Matuszczyk, Mateusz"]
[Result "1/2-1/2"]
[ECO "B29"]
[WhiteElo "2036"]
[BlackElo "1733"]
[Annotator "NA RC"]
[PlyCount "53"]
[EventDate "2018.08.01"]
[EventType "swiss"]
[EventCountry "POL"]
[SourceTitle "playchess.com"]
[Source "ChessBase"]
[SourceQuality "1"]
[TimeControl "40/5400+30:1800+30"]

1. Nf3 {[%emt 0:00:00]} c5 {[%emt 0:00:00]} 2. e4 {[%emt 0:00:09]} Nf6 {[%emt 0:00:00]} 3. d3 {[%emt 0:00:07]} d6 {[%emt 0:01:12]} 4. Nbd2 {[%emt 0:00:49]} g6 {[%emt 0:01:38]} 5. g3 {[%emt 0:00:06]} Bg7 {[%emt 0:00:04]} 6. Bg2 {[%emt 0:00:05]} Nc6 {[%emt 0:01:40]} 7. O-O {[%emt 0:00:57]} O-O {[%emt 0:00:02]} 8. c3 {[%emt 0:00:16]} e5 {[%emt 0:07:45]} 9. a3 {[%emt 0:00:52]} d5 {[%emt 0:02:26]} 10. b4 {[%emt 0:00:45]} dxe4 {[%emt 0:09:07]} 11. dxe4 {[%emt 0:00:34]} Qd3 {[%emt 0:04:23]} 12. Bb2 {[%emt 0:06:57]} Nxe4 {[%emt 0:01:43]} 13. Nxe4 {[%emt 0:02:52]} Qxe4 {[%emt 0:00:10]} 14. Nd4 {[%emt 0:00:35]} Qg4 {[%emt 0:01:28]} 15. Nxc6 {[%emt 0:00:56]} bxc6 {[%emt 0:00:18]} 16. Bxc6 {[%emt 0:00:48]} Rb8 {[%emt 0:02:29]} 17. Re1 {[%emt 0:08:40]} Qxd1 {[%emt 0:04:27]} 18. Raxd1 {[%emt 0:03:35]} Bb7 {[%emt 0:00:07]} 19. Bd5 {[%emt 0:11:33]} a5 {[%emt 0:03:41]} 20. Bc1 {[%emt 0:10:23]} cxb4 {[%emt 0:01:53]} 21. cxb4 {[%emt 0:01:12]} axb4 {[%emt 0:00:34]} 22. axb4 {[%emt 0:00:03]} Rfc8 {[%emt 0:07:14]} 23. Bb3 {[%emt 0:16:28]} Bc6 {[%emt 0:09:04]} 24. Bd2 {[%emt 0:02:24]} Bf8 {[%emt 0:05:46]} 25. Rxe5 {[%emt 0:02:45]} Bxb4 {[%emt 0:00:17]} 26. Bxb4 {[%emt 0:12:02]} Rxb4 {[%emt 0:00:15]} 27. Re3 1/2-1/2

[Event "2nd Irena Warakomska Memorial-B"]
[Site "Suwalki"]
[Date "2018.08.08"]
[Round "9"]
[White "Shamatava, Nikolozi"]
[Black "Koziej, Maciej"]
[Result "1/2-1/2"]
[ECO "D04"]
[WhiteElo "1676"]
[BlackElo "2027"]
[Annotator "NA RC"]
[PlyCount "70"]
[EventDate "2018.08.01"]
[EventType "swiss"]
[EventCountry "POL"]
[SourceTitle "playchess.com"]
[Source "ChessBase"]
[SourceQuality "1"]
[TimeControl "40/5400+30:1800+30"]

1. d4 {[%emt 0:00:00]} Nf6 {[%emt 0:13:06]} 2. Nf3 {[%emt 0:00:00]} d5 {[%emt 0:00:14]} 3. e3 {[%emt 0:00:15]} c6 {[%emt 0:00:28]} 4. Bd3 {[%emt 0:00:31]} Bg4 {[%emt 0:01:51]} 5. O-O {[%emt 0:02:26]} Nbd7 {[%emt 0:02:31]} 6. Re1 {[%emt 0:03:12]} e6 {[%emt 0:04:42]} 7. Nbd2 {[%emt 0:02:41]} Bd6 {[%emt 0:02:42]} 8. h3 {[%emt 0:00:57]} Bh5 {[%emt 0:00:11]} 9. e4 {[%emt 0:01:16]} dxe4 {[%emt 0:00:07]} 10. Nxe4 {[%emt 0:00:01]} Nxe4 {[%emt 0:00:10]} 11. Bxe4 {[%emt 0:00:01]} Nf6 {[%emt 0:00:07]} 12. Bg5 {[%emt 0:01:37]} Qa5 {[%emt 0:01:47]} 13. Bxf6 {[%emt 0:08:05]} gxf6 {[%emt 0:00:12]} 14. Qd2 {[%emt 0:00:08]} Qxd2 {[%emt 0:12:28]} 15. Nxd2 {[%emt 0:01:39]} Bf4 {[%emt 0:01:35]} 16. Nb3 {[%emt 0:01:19]} O-O-O {[%emt 0:01:10]} 17. g3 {[%emt 0:07:24]} Bc7 {[%emt 0:01:08]} 18. a4 {[%emt 0:03:33]} f5 {[%emt 0:00:06]} 19. Bg2 {[%emt 0:00:05]} f4 {[%emt 0:00:34]} 20. g4 {[%emt 0:01:57]} Bg6 {[%emt 0:05:00]} 21. c3 {[%emt 0:04:45]} h5 {[%emt 0:00:49]} 22. a5 {[%emt 0:02:23]} a6 {[%emt 0:02:01]} 23. Nc5 {[%emt 0:01:19]} hxg4 {[%emt 0:00:58]} 24. hxg4 {[%emt 0:00:03]} Rh4 {[%emt 0:01:25]} 25. f3 {[%emt 0:04:19]} Rd5 {[%emt 0:04:20]} 26. Bf1 {[%emt 0:07:00]} Rg5 {[%emt 0:02:20]} 27. Bc4 {[%emt 0:01:22]} Bd6 {[%emt 0:07:40]} 28. b4 {[%emt 0:02:38]} Bh7 {[%emt 0:08:04]} 29. Kg2 {[%emt 0:01:31]} Rg6 {[%emt 0:03:11]} 30. Rh1 {[%emt 0:06:45]} Rgh6 {[%emt 0:00:33]} 31. Rxh4 {[%emt 0:00:51]} Rxh4 {[%emt 0:00:02]} 32. Rh1 {[%emt 0:00:05]} Rxh1 33. Kxh1 {[%emt 0:00:01]} Bxc5 {[%emt 0:05:38]} 34. dxc5 {[%emt 0:00:33]} Kd7 {[%emt 0:00:48]} 35. Kg2 {[%emt 0:00:12]} Ke7 1/2-1/2